bitfinex-derivatives/quotes_SOLF0:USTF0_20240930
["timestamp","ask_amount","ask_price","bid_price","bid_amount"]
[1727734247444,8.87,156.08,156.06,3.2045]
[1727734251047,8.87,156.08,156.04,8.87]
[1727734251242,8.87,156.09,156.07,3.2044]
[1727734251734,0.12502,156.11,156.07,3.2044]
[1727734251936,8.87,156.08,155.99,0.12502]
[1727734252138,8.87,156.06,156.02,8.87]
[1727734252535,8.87,156.06,156.03,8.87]
[1727734253347,8.87,156.06,156.05,3.2049]
[1727734257744,8.87,156.06,156.03,8.87]
[1727734257745,3.2041,156.09,156.06,3.2046]
[1727734257951,8.87,156.07,156.06,3.2046]
[1727734259959,0.12502,156.11,156.05,8.87]
[1727734260157,8.87,156.1,156.05,8.87]
[1727734260760,8.87,156.1,156.08,3.2042]
[1727734260956,0.12502,156.11,156.06,8.87]
[1727734261265,0.12502,156.11,156.09,8.87]
[1727734261462,8.87,156.15,156.1,8.87]
[1727734261860,8.87,156.15,156.11,3.2035]
[1727734262058,8.87,156.15,156.1,8.87]
[1727734262365,0.12502,156.17,156.11,8.87]
[1727734262566,8.99502,156.17,156.11,8.87]
[1727734262861,0.12502,156.17,156.12,8.87]
[1727734263067,8.87,156.16,156.14,3.2029]
[1727734263363,0.12502,156.17,156.12,8.87]
[1727734263559,8.99502,156.17,156.12,10.2117]
[1727734263957,8.99502,156.17,156.16,3.2026]
[1727734267063,8.99502,156.17,156.12,10.2117]
[1727734267260,8.87,156.16,156.13,3.2032]
[1727734268368,8.87,156.16,156.14,3.2029]
[1727734269371,0.12502,156.17,156.13,8.87]
[1727734269686,0.12502,156.23,156.16,8.87]
[1727734269859,0.12502,156.23,156.19,8.87]
[1727734270062,0.12502,156.23,156.12,1.3417]
[1727734270063,8.87,156.21,156.12,1.3417]
[1727734270267,8.87,156.21,156.17,8.87]
[1727734270471,8.87,156.21,156.2,3.2018]
[1727734272062,8.87,156.21,156.13,69.2]
[1727734272268,8.87,156.18,156.13,69.2]
[1727734273464,8.87,156.18,156.13,78.07]
[1727734273764,8.87,156.18,156.17,3.2024]
[1727734276472,0.12502,156.23,156.15,8.87]
[1727734276676,8.87,156.19,156.15,8.87]
[1727734278074,8.87,156.19,156.17,3.2022]
[1727734281769,8.87,156.19,156.14,8.87]
[1727734281970,8.87,156.19,156.18,3.2022]
[1727734283269,8.87,156.19,156.14,3.203]
[1727734283572,8.87,156.16,156.13,8.87]
[1727734284176,8.87,156.16,156.15,3.2028]
[1727734284371,8.87,156.16,156.12,1.3417]
[1727734284576,8.87,156.15,156.12,1.3417]
[1727734284777,8.87,156.15,156.14,3.2029]
[1727734284978,8.87,156.16,156.14,3.2029]
[1727734285279,0.9297,156.22,156.13,8.87]
[1727734285471,0.9297,156.22,156.12,10.2117]
[1727734285472,8.87,156.16,156.12,10.2117]
[1727734285775,8.87,156.16,156.15,3.2028]
[1727734289584,8.87,156.16,156.14,3.203]
[1727734289778,8.87,156.15,156.14,3.203]
[1727734292382,2.4916,156.21,156.14,3.203]
[1727734292678,8.87,156.15,156.14,3.203]
[1727734293067,8.87,156.15,156.13,3.2032]
[1727734293274,8.87,156.14,156.13,3.2032]
[1727734294778,8.87,156.15,156.14,3.2029]
[1727734309687,2.4916,156.21,156.15,3.2026]
[1727734309688,8.87,156.16,156.15,3.2026]
[1727734315590,3.2021,156.19,156.15,3.2026]
[1727734315787,8.87,156.16,156.15,3.2026]
[1727734316797,8.87,156.16,156.13,3.2032]
[1727734317091,8.87,156.14,156.11,0.12502]
[1727734317289,8.87,156.12,156.11,0.12502]
[1727734318087,8.87,156.12,156.06,2.4792]
[1727734318287,0.12502,156.17,156.06,2.4792]
[1727734318288,8.87,156.09,156.06,2.4792]
[1727734318895,3.2031,156.14,156.06,11.3492]
[1727734319099,0.12502,156.17,156.07,8.87]
[1727734319291,8.87,156.12,156.1,3.2037]
[1727734320597,8.87,156.11,156.1,3.2037]
[1727734322697,8.87,156.11,156.06,2.4792]
[1727734323003,0.12502,156.17,156.06,2.4792]
[1727734323004,8.87,156.1,156.06,2.4792]
[1727734323200,8.87,156.07,156.06,1.2497]
[1727734323695,3.2031,156.14,156.06,10.1197]
[1727734323892,8.87,156.1,156.06,10.1197]
[1727734324095,8.87,156.1,156.06,1.2497]
[1727734324696,8.87,156.1,156.09,3.204]
[1727734329902,0.12502,156.17,156.08,8.87]
[1727734330103,8.87,156.13,156.08,8.87]
[1727734331305,8.87,156.13,156.1,3.2037]
[1727734331608,0.12502,156.17,156.08,8.87]
[1727734331806,8.87,156.13,156.11,3.2034]
[1727734333307,0.12502,156.17,156.11,8.87]
[1727734333507,8.99502,156.17,156.11,8.87]
[1727734333706,8.99502,156.17,156.14,3.2029]
[1727734335108,0.12502,156.17,156.16,3.2026]
[1727734335410,8.99502,156.17,156.16,3.2026]
[1727734336408,8.99502,156.17,156.13,3.2031]
[1727734336713,8.87,156.15,156.11,8.87]
[1727734337815,8.87,156.15,156.12,8.87]
[1727734338318,8.87,156.15,156.14,3.2029]
[1727734338706,8.87,156.15,156.12,8.87]
[1727734339011,8.87,156.14,156.1,8.87]
[1727734339408,8.87,156.14,156.12,3.2032]
[1727734339817,8.87,156.14,156.1,8.87]
[1727734341214,8.87,156.14,156.13,3.2032]
[1727734342114,8.87,156.15,156.13,3.2032]
[1727734344420,0.12502,156.17,156.14,3.203]
[1727734344621,0.12502,156.17,156.11,8.87]
[1727734344818,8.87,156.16,156.11,8.87]
[1727734345926,8.87,156.16,156.14,3.2028]
[1727734346430,8.99502,156.17,156.14,8.87]
[1727734346927,8.99502,156.17,156.15,3.2028]
[1727734350131,8.99502,156.17,156.16,3.2026]
[1727734354931,8.99502,156.17,156.13,8.87]
[1727734355131,8.87,156.16,156.14,3.203]
[1727734356031,8.87,156.15,156.13,3.2032]
[1727734358833,8.87,156.14,156.11,3.2036]
[1727734359028,3.203,156.15,156.11,3.2036]
[1727734359029,8.87,156.12,156.11,3.2036]
[1727734359831,8.87,156.12,156.1,3.2038]
[1727734360633,8.87,156.12,156.07,10.2004]
[1727734360834,8.87,156.12,156.11,3.2036]
[1727734361839,0.12502,156.17,156.09,8.87]
[1727734361840,3.2027,156.16,156.09,8.87]
[1727734362040,0.12502,156.17,156.14,3.2029]
[1727734362235,8.87,156.15,156.11,8.87]
[1727734362930,8.87,156.15,156.13,3.2031]
[1727734369238,8.87,156.15,156.11,8.87]
[1727734369442,8.87,156.15,156.14,3.203]
[1727734378051,8.87,156.15,156.07,1.3304]
[1727734378368,8.87,156.11,156.07,1.3304]
[1727734378654,8.87,156.09,156.08,3.2041]
[1727734379351,8.87,156.09,156.06,3.2045]
[1727734379549,8.87,156.08,156.06,3.2045]
[1727734380052,3.2034,156.12,156.08,3.2042]
[1727734380256,2.2167,156.15,156.07,8.87]
[1727734380455,1.2866,156.15,156.08,8.87]
[1727734380655,8.87,156.13,156.11,3.2034]
[1727734382552,8.87,156.13,156.08,8.87]
[1727734384351,8.87,156.11,156.06,12.7251]
[1727734384957,8.87,156.11,156.09,3.204]
[1727734386353,8.87,156.1,156.06,1.2423]
[1727734386554,1.342,156.16,156.05,0.12502]
[1727734386555,8.87,156.07,156.05,0.12502]
[1727734386853,3.27673827,156.11,156.05,3.32972]
[1727734387158,8.87,156.07,156.05,0.12502]
[1727734387952,8.87,156.06,156.05,3.32982]
[1727734388148,8.87,156.06,156.05,0.12502]
[1727734389361,8.87,156.06,156.05,3.32992]
[1727734392349,8.87,156.07,156.06,3.2046]
[1727734405570,8.87,156.07,156.05,0.12502]
[1727734405863,8.87,156.06,156.05,3.32982]
[1727734416671,1.2683,156.12,156.05,0.12502]
[1727734416973,8.87,156.07,156.05,0.12502]
[1727734418377,8.87,156.07,156.06,3.2046]
[1727734418577,8.87,156.07,156.05,0.12502]
[1727734418774,8.87,156.06,156.05,0.12502]
[1727734427391,8.87,156.06,156.0,1.2578]
[1727734427584,1.44582,156.11,155.99,0.12502]
[1727734427585,8.87,156.01,155.99,0.12502]
[1727734428189,8.87,156.01,156.0,3.2058]
[1727734429187,8.87,156.01,155.99,0.12502]
[1727734429389,8.87,156.0,155.99,0.12502]
[1727734438899,0.9317,156.1,155.99,0.12502]
[1727734439096,8.87,156.01,155.99,0.12502]
[1727734440396,8.87,156.01,156.0,3.2058]
[1727734440596,3.16571767,156.05,156.0,3.2058]
[1727734440796,8.87,156.01,156.0,3.2058]
[1727734450894,8.87,156.01,155.99,3.33102]
[1727734451207,8.87,156.01,155.99,0.12502]
[1727734451901,8.87,156.0,155.99,0.12502]
[1727734455912,1.3492,156.04,155.99,3.33112]
[1727734456113,8.87,156.0,155.99,3.33112]
[1727734456613,1.3492,156.04,155.99,0.12502]
[1727734456813,1.3492,156.04,156.0,3.2059]
[1727734457009,0.9317,156.1,155.99,8.99502]
[1727734457220,8.87,156.06,156.05,3.2048]
[1727734457806,8.87,156.07,156.05,3.2048]
[1727734458214,8.87,156.07,156.06,3.2046]
[1727734458516,8.87,156.07,156.02,8.87]
[1727734459915,8.87,156.07,156.04,3.2049]
[1727734460314,8.87,156.07,156.05,3.2048]
[1727734461117,8.87,156.08,156.06,3.2046]
[1727734463822,8.87,156.07,156.06,3.2046]
[1727734466425,8.87,156.07,156.03,1.3435]
[1727734466724,8.87,156.05,156.04,3.2049]
[1727734473135,8.87,156.05,156.03,1.3435]
[1727734473326,8.87,156.05,156.03,4.5486]
[1727734473627,8.87,156.05,156.03,1.3435]
[1727734474431,8.87,156.06,156.04,3.2051]
[1727734476832,8.87,156.06,156.03,1.3435]
[1727734477034,8.87,156.06,156.05,3.2049]
[1727734483134,8.87,156.06,156.01,3.2056]
[1727734483443,0.12502,156.11,155.99,0.12502]
[1727734483444,8.87,156.02,155.99,0.12502]
[1727734483638,8.87,156.01,155.99,0.12502]
[1727734483935,8.87,156.01,156.0,3.2059]
[1727734489235,8.87,156.03,156.02,3.2054]
[1727734490939,8.87,156.03,155.99,0.12502]
[1727734491135,1.347,156.09,155.99,3.33102]
[1727734491136,8.87,156.0,155.99,3.33102]
[1727734492136,8.87,156.0,155.99,0.12502]
[1727734504245,8.87,156.0,155.96,3.2066]
[1727734504452,8.87,155.97,155.94,60.19746609]
[1727734504654,8.87,155.95,155.94,60.19746609]
[1727734505647,8.87,155.95,155.94,63.40456609]
[1727734506542,8.87,155.95,155.94,3.2071]
[1727734511759,8.87,155.95,155.93,0.12502]
[1727734511950,8.87,155.94,155.93,0.12502]
[1727734512353,8.87,155.94,155.88,1.3207]
[1727734512652,8.87,155.89,155.87,69.38502]
[1727734513755,8.87,155.89,155.88,3.2083]
[1727734514456,8.87,155.89,155.87,72.59352]
[1727734514664,8.87,155.88,155.87,69.38502]
[1727734514962,8.87,155.88,155.87,0.12502]
[1727734515280,8.87,155.88,155.82,1.3207]
[1727734515457,8.87,155.83,155.82,1.3207]
[1727734515660,8.87,155.84,155.82,1.3207]
[1727734516447,8.87,155.84,155.83,3.2094]
[1727734517961,8.87,155.84,155.82,3.2095]
[1727734518259,3.2088,155.86,155.81,0.12502]
[1727734518460,2.4835,155.91,155.81,0.12502]
[1727734518760,8.87,155.82,155.81,0.12502]
[1727734519060,8.87,155.82,155.78,4.5173]
[1727734519258,8.87,155.79,155.75,0.12502]
[1727734519459,8.87,155.77,155.76,3.2108]
[1727734527469,8.87,155.77,155.75,3.33602]
[1727734527671,8.87,155.76,155.75,3.33602]
[1727734529967,8.87,155.76,155.75,0.12502]
[1727734534273,4.41759204,155.84,155.76,3.2108]
[1727734534579,8.87,155.77,155.76,3.2108]
[1727734540078,8.87,155.77,155.75,3.33592]
[1727734540277,8.87,155.76,155.75,3.33592]
[1727734542481,8.87,155.76,155.75,0.12502]
[1727734542676,8.87,155.76,155.7,1.3218]
[1727734542977,8.87,155.72,155.69,1.46872]
[1727734543678,8.87,155.73,155.72,3.2116]
[1727734545075,8.87,155.74,155.73,3.2114]
[1727734545275,8.87,155.75,155.7,8.87]
[1727734545875,8.87,155.75,155.74,3.2112]
[1727734546076,8.87,155.76,155.72,8.87]
[1727734547282,8.87,155.76,155.74,3.211]
[1727734547479,69.01917578,155.81,155.72,8.87]
[1727734547680,8.87,155.76,155.72,8.87]
[1727734548083,8.87,155.76,155.74,3.2111]
[1727734549882,8.87,155.76,155.75,3.211]
[1727734553980,8.87,155.76,155.71,1.3192]
[1727734554182,8.87,155.74,155.71,1.3192]
[1727734554586,8.87,155.74,155.73,3.2114]
[1727734555286,8.87,155.74,155.72,3.2115]
[1727734555487,8.87,155.73,155.72,3.2115]
[1727734555688,8.87,155.74,155.69,10.33872]
[1727734555885,8.87,155.74,155.73,3.2114]
[1727734556483,8.87,155.76,155.75,3.211]
[1727734557589,69.01917578,155.81,155.75,3.211]
[1727734557783,8.87,155.76,155.75,3.211]
[1727734557984,3.2103,155.79,155.75,3.211]
[1727734558289,8.87,155.76,155.69,1.46872]
[1727734558484,8.87,155.74,155.7,8.87]
[1727734558986,8.87,155.74,155.73,3.2114]
[1727734560297,69.01917578,155.81,155.72,8.87]
[1727734560497,69.01917578,155.81,155.71,1.2667]
[1727734560498,8.87,155.76,155.71,1.2667]
[1727734560697,8.87,155.76,155.71,10.1367]
[1727734561299,8.87,155.75,155.74,3.2111]
[1727734561501,8.87,155.75,155.69,10.33872]
[1727734561901,8.87,155.74,155.69,1.46872]
[1727734562096,8.87,155.72,155.69,1.46872]
[1727734562501,0.9335,155.8,155.73,3.2114]
[1727734562703,8.87,155.74,155.73,3.2114]
[1727734562904,8.87,155.74,155.69,1.46872]
[1727734563104,8.87,155.7,155.69,1.46872]
[1727734563318,8.87,155.7,155.69,0.12502]
[1727734563916,3.26878492,155.75,155.69,0.12502]
[1727734564212,8.87,155.7,155.69,0.12502]
[1727734565511,8.87,155.7,155.65,69.36]
[1727734565814,3.3282686,155.75,155.63,0.12502]
[1727734565815,8.87,155.66,155.63,0.12502]
[1727734566019,8.87,155.64,155.63,3.33852]
[1727734566710,1.2638,155.72,155.63,0.12502]
[1727734566914,1.2638,155.72,155.63,8.99502]
[1727734567109,1.2638,155.72,155.64,8.87]
[1727734567409,1.2638,155.72,155.65,3.213]
[1727734567410,8.87,155.66,155.65,3.213]
[1727734568121,8.87,155.67,155.66,3.2128]
[1727734571225,8.87,155.67,155.63,0.12502]
[1727734571521,8.87,155.64,155.63,3.33842]
[1727734572319,8.87,155.64,155.63,0.12502]
[1727734572917,8.87,155.64,155.63,3.33852]
[1727734573836,8.87,155.64,155.63,0.12502]
[1727734574325,1.2638,155.72,155.63,0.12502]
[1727734574527,8.87,155.64,155.63,0.12502]
[1727734576424,8.87,155.64,155.57,0.12502]
[1727734576634,28.0,155.59,155.57,0.12502]
[1727734576928,8.87,155.58,155.57,0.12502]
[1727734579027,8.87,155.58,155.52,3.2157]
[1727734579225,8.87,155.53,155.48,8.87]
[1727734579418,8.87,155.52,155.48,8.87]
[1727734579625,8.87,155.52,155.5,3.2161]
[1727734580225,90.96048503,155.63,155.48,8.87]
[1727734580430,8.87,155.53,155.48,8.87]
[1727734580633,90.96048503,155.63,155.51,3.34102]
[1727734580832,8.87,155.54,155.51,0.12502]
[1727734581033,71.73048503,155.63,155.53,8.87]
[1727734581236,8.87,155.6,155.56,3.2148]
[1727734582535,8.87,155.58,155.54,3.2152]
[1727734582738,8.87,155.58,155.53,8.87]
[1727734583030,8.87,155.58,155.51,0.12502]
[1727734583231,8.87,155.57,155.54,3.2153]
[1727734583630,13.9,155.59,155.54,3.2153]
[1727734584032,13.9,155.59,155.55,3.2151]
[1727734585736,13.9,155.59,155.51,0.12502]
[1727734585933,13.9,155.57,155.53,3.2155]
[1727734586732,13.9,155.59,155.51,0.12502]
[1727734586938,13.9,155.59,155.52,13.9]
[1727734587135,13.9,155.59,155.56,3.2148]
[1727734589530,13.9,155.59,155.57,3.2147]
[1727734590533,13.9,155.59,155.52,15.1299]
[1727734590534,71.73048503,155.63,155.54,13.9]
[1727734590739,71.73048503,155.63,155.55,1.3531]
[1727734590944,69.10448503,155.63,155.55,1.3531]
[1727734592747,69.10448503,155.63,155.59,3.2142]
[1727734593242,69.10448503,155.63,155.55,1.3531]
[1727734593631,69.10448503,155.63,155.56,13.9]
[1727734593838,0.12502,155.63,155.58,13.9]
[1727734594343,0.12502,155.63,155.62,3.2137]
[1727734594741,0.12502,155.63,155.62,17.1137]
[1727734595244,0.12502,155.63,155.62,3.2137]
[1727734597734,0.12502,155.63,155.56,83.32]
[1727734598147,14.02502,155.63,155.56,69.42]
[1727734599234,14.02502,155.63,155.6,3.214]
[1727734599645,14.02502,155.63,155.56,69.42]
[1727734599850,14.02502,155.63,155.61,3.2139]
[1727734600145,14.02502,155.63,155.56,69.42]
[1727734600745,14.02502,155.63,155.58,3.2145]
[1727734601048,14.02502,155.63,155.56,69.42]
[1727734601943,14.02502,155.63,155.58,3.2145]
[1727734602142,14.02502,155.63,155.56,69.42]
[1727734602348,14.02502,155.63,155.55,2.6785]
[1727734602951,14.02502,155.63,155.6,3.214]
[1727734603750,0.12502,155.63,155.61,3.2139]
[1727734603944,0.12502,155.63,155.55,2.6785]
[1727734605442,0.12502,155.63,155.6,3.2139]
[1727734605640,0.12502,155.63,155.59,13.9]
[1727734606047,0.12502,155.63,155.62,3.2137]
[1727734618257,9.00502,155.63,155.6,3.2141]
[1727734618453,8.88,155.62,155.6,3.2141]
[1727734620465,8.88,155.62,155.61,3.2139]
[1727734621768,0.12502,155.63,155.58,8.88]
[1727734622072,9.00502,155.63,155.62,3.2137]
[1727734631578,9.00502,155.63,155.55,2.6785]
[1727734631777,8.88,155.6,155.55,2.6785]
[1727734632272,8.88,155.6,155.58,3.2144]
[1727734632473,8.88,155.6,155.55,2.6785]
[1727734632668,8.88,155.58,155.56,3.2148]
[1727734633274,8.88,155.58,155.57,3.2147]
[1727734633475,8.88,155.59,155.55,1.3531]
[1727734634181,8.88,155.59,155.57,3.2146]
[1727734634381,8.88,155.58,155.57,3.2146]
[1727734635977,8.88,155.58,155.55,1.3531]
[1727734636579,8.88,155.57,155.55,1.3531]
[1727734636778,8.88,155.57,155.56,3.2149]
[1727734637080,8.88,155.57,155.54,69.42]
[1727734637382,8.88,155.56,155.51,0.12502]
[1727734637581,8.88,155.54,155.53,3.2154]
[1727734638985,1.3201,155.62,155.54,3.2153]
[1727734639183,8.88,155.56,155.54,3.2153]
[1727734639782,8.88,155.55,155.54,3.2153]
[1727734639976,8.88,155.55,155.53,3.2155]
[1727734642185,8.88,155.54,155.53,3.2155]
[1727734643177,8.88,155.54,155.51,0.12502]
[1727734643385,8.88,155.52,155.46,69.42]
[1727734643682,1.2897,155.55,155.48,3.2166]
[1727734643874,8.88,155.51,155.46,78.3]
[1727734644077,1.2897,155.55,155.47,8.88]
[1727734644279,8.88,155.48,155.45,0.12502]
[1727734644979,8.88,155.48,155.46,3.2168]
[1727734645178,3.22986727,155.54,155.45,0.12502]
[1727734645384,8.88,155.49,155.47,3.2166]
[1727734645880,8.88,155.49,155.45,0.12502]
[1727734646284,8.88,155.49,155.45,9.00502]
[1727734646994,8.88,155.5,155.45,9.00502]
[1727734647284,1.2825,155.56,155.47,8.88]
[1727734647582,8.88,155.52,155.48,1.2284]
[1727734647791,8.88,155.51,155.48,1.2284]
[1727734648082,8.88,155.51,155.49,3.2162]
[1727734648384,8.88,155.5,155.48,1.2284]
[1727734649589,8.88,155.5,155.48,4.4449]
[1727734651684,1.2825,155.56,155.48,1.2284]
[1727734651987,8.88,155.53,155.48,1.2284]
[1727734652383,8.88,155.53,155.5,3.216]
[1727734652686,8.88,155.53,155.48,1.2284]
[1727734653085,8.88,155.53,155.5,3.216]
[1727734653985,0.12502,155.57,155.53,3.2155]
[1727734654289,8.88,155.55,155.5,8.88]
[1727734655797,8.88,155.55,155.51,8.88]
[1727734656995,8.88,155.55,155.53,3.2154]
[1727734657391,0.12502,155.57,155.53,8.88]
[1727734657598,0.12502,155.57,155.56,12.0949]
[1727734658696,0.12502,155.57,155.56,3.2149]
[1727734658891,0.12502,155.57,155.55,3.2151]
[1727734659991,0.12502,155.57,155.56,3.2149]
[1727734660798,0.12502,155.57,155.54,1.2678]
[1727734661101,8.88,155.56,155.51,8.88]
[1727734661399,8.88,155.56,155.52,8.88]
[1727734661588,9.00502,155.57,155.55,3.2152]
[1727734662799,9.00502,155.57,155.53,8.88]
[1727734663003,0.12502,155.57,155.53,8.88]
[1727734663188,0.12502,155.57,155.55,8.88]
[1727734663498,0.12502,155.57,155.56,8.88]
[1727734663901,0.12502,155.57,155.56,12.0949]
[1727734665399,8.88,155.62,155.58,12.0945]
[1727734665698,0.12502,155.63,155.58,3.2145]
[1727734666389,3.2138,155.62,155.56,3.2149]
[1727734666588,3.2138,155.62,155.53,13.89]
[1727734668902,14.01502,155.63,155.55,13.89]
[1727734669099,0.12502,155.63,155.55,13.89]
[1727734669401,0.12502,155.63,155.56,1.2987]
[1727734670002,0.12502,155.63,155.58,3.2145]
[1727734671798,17.22862,155.63,155.57,3.2147]
[1727734671999,17.22862,155.63,155.56,1.2987]
[1727734672600,17.22862,155.63,155.57,3.2146]
[1727734673100,0.12502,155.63,155.58,3.2145]
[1727734673803,0.12502,155.63,155.57,3.2147]
[1727734678420,3.33862,155.63,155.57,3.2147]
[1727734679818,3.2138,155.62,155.56,4.5135]
[1727734680812,14.01502,155.63,155.56,1.2987]
[1727734681114,17.22862,155.63,155.57,3.2147]
[1727734683624,13.89,155.6,155.52,13.89]
[1727734683808,13.89,155.6,155.51,0.12502]
[1727734684721,1.2615,155.62,155.51,0.12502]
[1727734684722,13.89,155.58,155.51,0.12502]
[1727734684920,17.17309855,155.58,155.51,0.12502]
[1727734685822,3.2151,155.56,155.51,0.12502]
[1727734686028,17.17309855,155.58,155.51,0.12502]
[1727734686323,3.2148,155.57,155.51,3.34092]
[1727734687318,17.17309855,155.58,155.51,3.34092]
[1727734687319,3.2151,155.56,155.51,3.34092]
[1727734687514,8.9,155.54,155.51,3.34092]
[1727734692012,3.28309855,155.58,155.52,8.9]
[1727734692225,8.9,155.56,155.53,3.2154]
[1727734692528,8.9,155.56,155.52,8.9]
[1727734692733,8.9,155.56,155.52,12.1157]
[1727734696520,8.9,155.59,155.54,8.9]
[1727734696825,8.9,155.6,155.54,8.9]
[1727734697221,10.1615,155.62,155.57,8.9]
[1727734697526,8.9,155.62,155.58,3.2145]
[1727734697827,0.12502,155.63,155.59,8.9]
[1727734698027,0.12502,155.63,155.59,12.1143]
[1727734699326,9.02502,155.63,155.59,12.1143]
[1727734701733,8.9,155.62,155.57,12.1146]
[1727734702932,12.1137,155.62,155.57,12.1146]
[1727734703127,8.9,155.59,155.53,69.44]
[1727734703331,8.9,155.59,155.53,78.34]
[1727734703632,0.12502,155.63,155.53,72.6555]
[1727734703633,8.9,155.57,155.53,72.6555]
[1727734703832,8.9,155.56,155.53,72.6555]
[1727734704631,8.9,155.56,155.53,69.44]
[1727734705836,8.9,155.58,155.53,69.44]
[1727734706534,8.9,155.58,155.53,72.6554]
[1727734706836,8.9,155.58,155.53,3.2154]
[1727734707927,8.9,155.58,155.54,3.2153]
[1727734710235,8.9,155.58,155.53,3.2155]
[1727734710627,8.9,155.56,155.53,3.2155]
[1727734714638,8.9,155.55,155.51,3.34092]
[1727734714842,8.9,155.55,155.51,0.12502]
[1727734715635,3.2146,155.58,155.52,8.9]
[1727734715841,8.9,155.57,155.52,8.9]
[1727734716640,8.9,155.57,155.53,3.2154]
[1727734716845,8.9,155.56,155.53,3.2154]
[1727734717430,8.9,155.56,155.51,9.02502]
[1727734717651,8.9,155.56,155.51,0.12502]
[1727734718841,8.9,155.56,155.51,9.02502]
[1727734720045,8.9,155.54,155.51,0.12502]
[1727734721153,1.2697,155.62,155.51,9.02502]
[1727734721345,1.2697,155.62,155.52,8.9]
[1727734721542,8.9,155.57,155.52,8.9]
[1727734721741,8.9,155.57,155.52,12.1156]
[1727734723043,12.1147,155.57,155.52,12.1156]
[1727734723343,1.2697,155.62,155.54,3.2154]
[1727734723344,8.9,155.58,155.54,3.2154]
[1727734723543,8.9,155.58,155.53,8.9]
[1727734724047,8.9,155.58,155.54,3.2153]
[1727734727544,8.9,155.58,155.53,12.1155]
[1727734727853,8.9,155.56,155.51,0.12502]
[1727734728754,8.9,155.56,155.51,3.34092]
[1727734730049,8.9,155.54,155.51,0.12502]
[1727734732659,8.9,155.52,155.51,0.12502]
[1727734733157,12.1158,155.52,155.51,0.12502]
[1727734735058,8.9,155.52,155.45,0.12502]
[1727734735256,3.4424,155.55,155.45,0.12502]
[1727734735477,8.9,155.46,155.45,0.12502]
[1727734735665,12.117,155.46,155.45,0.12502]
[1727734736455,3.2179,155.42,155.4,0.12518]
[1727734736752,8.9,155.41,155.4,0.12518]
[1727734739764,12.1181,155.41,155.4,0.12518]
[1727734740056,8.9,155.41,155.4,0.12518]
[1727734742758,3.2175,155.44,155.4,0.12518]
[1727734742962,8.9,155.42,155.4,0.12518]
[1727734743161,1.3424,155.48,155.42,3.2178]
[1727734743352,8.9,155.45,155.42,3.2178]